fUST/lending_fUST_20250206
["ID","MTS","AMOUNT","RATE_DAILY","PERIOD"]
[351796561,1738791047788,-500.0,0.00013698,2]
[351796563,1738791047798,-500.0,0.00013698,2]
[351796565,1738791047808,-500.0,0.00013698,2]
[351796567,1738791047819,-2793.66,0.00013698,2]
[351796569,1738791047828,-500.0,0.00013698,2]
[351796571,1738791047838,-110806.07,0.00013698,2]
[351796573,1738791047848,-501.50141218,0.00013698,2]
[351796575,1738791047858,-733.65,0.00013698,2]
[351796577,1738791047868,-500.0,0.00013698,2]
[351796579,1738791047878,-493.45439239,0.00013698,2]
[351796581,1738791047887,-500.0,0.00013698,2]
[351796583,1738791047897,-4303.7,0.00013698,2]
[351796585,1738791047907,-4303.7,0.00013698,2]
[351796587,1738791047917,-4303.7,0.00013698,2]
[351796590,1738791047927,-4303.7,0.00013698,2]
[351796591,1738791047937,-4303.7,0.00013698,2]
[351796593,1738791047947,-500.0,0.00013698,2]
[351796595,1738791047957,-4303.7,0.00013698,2]
[351796598,1738791047967,-500.0,0.00013698,2]
[351796600,1738791047979,-4303.7,0.00013698,2]
[351796602,1738791047990,-500.0,0.00013698,2]
[351796603,1738791048000,-4303.7,0.00013698,2]
[351796606,1738791048011,-4303.7,0.00013698,2]
[351796607,1738791048020,-4303.7,0.00013698,2]
[351796610,1738791048031,-4303.7,0.00013698,2]
[351796612,1738791048042,-4303.7,0.00013698,2]
[351796614,1738791048052,-4303.7,0.00013698,2]
[351796616,1738791048062,-4303.7,0.00013698,2]
[351796617,1738791048072,-4303.7,0.00013698,2]
[351796619,1738791048082,-4303.7,0.00013698,2]
[351796622,1738791048093,-500.0,0.00013698,2]
[351796624,1738791048103,-4303.7,0.00013698,2]
[351796625,1738791048112,-4303.7,0.00013698,2]
[351796627,1738791048122,-4303.7,0.00013698,2]
[351796629,1738791048132,-4303.7,0.00013698,2]
[351796631,1738791048143,-4303.7,0.00013698,2]
[351796633,1738791048152,-4303.7,0.00013698,2]
[351796635,1738791048163,-500.0,0.00013698,2]
[351796637,1738791048174,-4303.7,0.00013698,2]
[351796639,1738791048184,-4303.80428907,0.00013698,2]
[351796641,1738791048195,-510.89,0.00013698,2]
[351796643,1738791048205,-500.0,0.00013698,2]
[351796645,1738791048216,-6766.71,0.00013698,2]
[351796647,1738791048227,-693.14,0.00013698,2]
[351796649,1738791048240,-4892.2,0.00013698,2]
[351796651,1738791048252,-500.0,0.00013698,2]
[351796653,1738791048263,-500.0,0.00013698,2]
[351796655,1738791048274,-520.83,0.00013698,2]
[351796657,1738791048285,-501.01857516,0.00013698,2]
[351796659,1738791048295,-500.0,0.00013698,2]
[351796662,1738791048307,-500.0,0.00013698,2]
[351796664,1738791048317,-500.0,0.00013698,2]
[351796666,1738791048329,-500.0,0.00013698,2]
[351796667,1738791048340,-1320.52,0.00013698,2]
[351796670,1738791048352,-500.0,0.00013698,2]
[351796672,1738791048363,-500.0,0.00013698,2]
[351796674,1738791048374,-598.3233205,0.00013698,2]
[351796676,1738791048384,-676.99,0.00013698,2]
[351796678,1738791048394,-769.25,0.00013698,2]
[351796680,1738791048405,-2680.92,0.00013698,2]
[351796682,1738791048415,-565.64608276,0.00013698,2]
[351796684,1738791048425,-515.66,0.00013698,2]
[351796686,1738791048435,-500.0,0.00013698,2]
[351796688,1738791048447,-2997.95,0.00013698,2]
[351796690,1738791048457,-500.0,0.00013698,2]
[351796692,1738791048467,-33829.73,0.00013698,2]
[351796694,1738791048477,-201.6004606,0.00013699,2]
[351796696,1738791048494,-2023.0366104,0.00013699,2]
[351796698,1738791048505,-289.731484,0.00013699,2]
[351796700,1738791048515,-500.0,0.00013699,2]
[351796702,1738791048527,-500.0,0.00013699,2]
[351796704,1738791048538,-500.0,0.00013699,2]
[351796706,1738791048549,-500.0,0.00013699,2]
[351796708,1738791048559,-500.0,0.00013699,2]
[351796710,1738791048570,-500.0,0.00013699,2]
[351796712,1738791048581,-560.28,0.00013699,2]
[351796714,1738791048591,-500.0,0.00013699,2]
[351796716,1738791048601,-342.16716927,0.00013699,2]
[351796718,1738791048612,-151.0,0.000137,2]
[351796720,1738791048621,-151.0,0.000137,2]
[351796722,1738791048631,-151.0,0.000137,2]
[351796724,1738791048647,-151.0,0.000137,2]
[351796726,1738791048657,-952.85676519,0.00013735,2]
[351796728,1738791048667,-155.0,0.00013763,2]
[351796730,1738791048676,-155.0,0.00013763,2]
[351796732,1738791048686,-155.0,0.00013763,2]
[351796734,1738791048696,-155.0,0.00013763,2]
[351796736,1738791048706,-155.0,0.00013763,2]
[351796738,1738791048716,-155.0,0.00013763,2]
[351796740,1738791048727,-155.0,0.00013763,2]
[351796742,1738791048738,-155.05,0.00013763,2]
[351796744,1738791048748,-169.0,0.00013763,2]
[351796746,1738791048758,-169.0,0.00013763,2]
[351796748,1738791048767,-170.7,0.00013763,2]
[351796750,1738791048776,-157.0,0.00013763,2]
[351796752,1738791048786,-151.0,0.000138,2]
[351796754,1738791048796,-151.0,0.000138,2]
[351796756,1738791048806,-151.0,0.000138,2]
[351796759,1738791048816,-151.0,0.000138,2]
[351796761,1738791048826,-151.0,0.000138,2]
[351796763,1738791048835,-151.0,0.000138,2]
[351796765,1738791048845,-151.0,0.00013835,2]
[351796766,1738791048855,-151.0,0.00013835,2]
[351796768,1738791048865,-500.0,0.00013835,2]
[351796770,1738791048875,-583.79,0.00013835,2]
[351796773,1738791048884,-500.0,0.00013835,2]
[351796775,1738791048894,-505.74199132,0.00013835,2]
[351796776,1738791048904,-500.0,0.00013835,2]
[351796778,1738791048914,-414.51517645,0.00013835,2]
[351796780,1738791048924,-500.0,0.00013835,2]
[351796783,1738791048934,-569.88,0.00013835,2]
[351796785,1738791048944,-500.0,0.00013835,2]
[351796787,1738791048954,-500.0,0.00013835,2]
[351796789,1738791048964,-1637.88,0.00013835,2]
[351796791,1738791048973,-500.0,0.00013835,2]
[351796793,1738791048982,-500.0,0.00013835,2]
[351796795,1738791048995,-500.0,0.00013835,2]
[351796797,1738791049005,-500.0,0.00013835,2]
[351796799,1738791049015,-500.0,0.00013835,2]
[351796801,1738791049025,-808.51,0.00013835,2]
[351796803,1738791049034,-500.0,0.00013835,2]
[351796805,1738791049044,-901.42,0.00013835,2]
[351796807,1738791049054,-500.0,0.00013835,2]
[351796809,1738791049064,-500.0,0.00013835,2]
[351796811,1738791049074,-226.42980137,0.00013835,2]
[351796813,1738791049083,-500.0,0.00013835,2]
[351796815,1738791049092,-511.64698148,0.00013835,2]
[351796817,1738791049102,-500.0,0.00013835,2]
[351796819,1738791049112,-500.0,0.00013835,2]
[351796821,1738791049121,-500.0,0.00013835,2]
[351796823,1738791049131,-618.8,0.00013835,2]
[351796825,1738791049140,-230.83926229,0.00013835,2]
[351796827,1738791049150,-393.0,0.00013835,2]
[351796829,1738791049159,-518.85485191,0.00013835,2]
[351796831,1738791049168,-522.87038383,0.00013835,2]
[351796833,1738791049178,-500.0,0.00013835,2]
[351796834,1738791049187,-500.0,0.00013835,2]
[351796836,1738791049196,-1000.0,0.00013835,2]
[351796838,1738791049205,-501.20315006,0.00013835,2]
[351796840,1738791049215,-500.0,0.00013835,2]
[351796842,1738791049224,-281.53772769,0.00013835,2]
[351796844,1738791049233,-500.0,0.00013835,2]
[351796846,1738791049244,-205.85701015,0.00013835,2]
[351796848,1738791049254,-500.0,0.00013835,2]
[351796850,1738791049263,-500.0,0.00013835,2]
[351796851,1738791049272,-500.0,0.00013835,2]
[351796852,1738791049282,-500.0,0.00013835,2]
[351796853,1738791049291,-500.0,0.00013835,2]
[351796854,1738791049301,-340.59831337,0.00013835,2]
[351796855,1738791049310,-500.82785727,0.00013835,2]
[351796856,1738791049319,-500.0,0.00013835,2]
[351796857,1738791049329,-500.0,0.00013835,2]
[351796858,1738791049339,-268.07552366,0.00013835,2]
[351796859,1738791049348,-500.0,0.00013835,2]
[351796860,1738791049358,-362.32917678,0.00013835,2]
[351796861,1738791049368,-544.93240549,0.00013835,2]
[351796862,1738791049378,-500.0,0.00013835,2]
[351796863,1738791049387,-500.0,0.00013835,2]
[351796864,1738791049396,-525.87,0.00013835,2]
[351796865,1738791049406,-500.0,0.00013835,2]
[351796866,1738791049415,-500.0,0.00013835,2]
[351796867,1738791049425,-500.0,0.00013835,2]
[351796868,1738791049434,-500.0,0.00013835,2]
[351796869,1738791049444,-500.0,0.00013835,2]
[351796870,1738791049454,-502.42819887,0.00013835,2]
[351796871,1738791049463,-335.53491722,0.00013835,2]
[351796872,1738791049474,-902.77,0.00013835,2]
[351796873,1738791049484,-500.0,0.00013835,2]
[351796874,1738791049495,-500.0,0.00013835,2]
[351796875,1738791049507,-500.0,0.00013835,2]
[351796876,1738791049516,-500.0,0.00013835,2]
[351796877,1738791049525,-500.0,0.00013835,2]
[351796878,1738791049535,-508.21544375,0.00013835,2]
[351796879,1738791049544,-500.0,0.00013835,2]
[351796880,1738791049553,-500.0,0.00013835,2]
[351796881,1738791049563,-500.0,0.00013835,2]
[351796882,1738791049573,-500.0,0.00013835,2]
[351796883,1738791049582,-500.0,0.00013835,2]
[351796884,1738791049591,-502.48009893,0.00013835,2]
[351796885,1738791049602,-500.0,0.00013835,2]
[351796886,1738791049612,-500.0,0.00013835,2]
[351796887,1738791049622,-500.0,0.00013835,2]
[351796888,1738791049631,-500.0,0.00013835,2]
[351796889,1738791049640,-500.0,0.00013835,2]
[351796890,1738791049653,-500.0,0.00013835,2]
[351796891,1738791049662,-936.77,0.00013835,2]
[351796892,1738791049672,-500.0,0.00013835,2]
[351796893,1738791049681,-500.0,0.00013835,2]
[351796894,1738791049692,-500.0,0.00013835,2]
[351796895,1738791049702,-1266.74,0.00013835,2]
[351796896,1738791049711,-500.0,0.00013835,2]
[351796897,1738791049722,-280.72192247,0.00013835,2]
[351796898,1738791049731,-1872.18,0.00013835,2]
[351796899,1738791049742,-501.55642339,0.00013835,2]
[351796900,1738791049753,-500.0,0.00013835,2]
[351796901,1738791049762,-500.0,0.00013835,2]
[351796902,1738791049773,-500.0,0.00013835,2]
[351796903,1738791049888,-681.08,0.00013835,2]
[351796904,1738791049910,-500.0,0.00013835,2]
[351796905,1738791049920,-500.0,0.00013835,2]
[351796906,1738791049930,-500.0,0.00013835,2]
[351796907,1738791049940,-500.0,0.00013835,2]
[351796908,1738791049949,-500.0,0.00013835,2]
[351796909,1738791049959,-500.0,0.00013835,2]
[351796910,1738791049969,-500.0,0.00013835,2]
[351796911,1738791049979,-500.0,0.00013835,2]
[351796912,1738791049991,-500.0,0.00013835,2]
[351796913,1738791050001,-500.0,0.00013835,2]
[351796914,1738791050011,-500.0,0.00013835,2]
[351796915,1738791050020,-628.58,0.00013835,2]
[351796916,1738791050030,-500.0,0.00013835,2]
[351796917,1738791050039,-555.40113007,0.00013835,2]
[351796918,1738791050049,-500.0,0.00013835,2]
[351796919,1738791050059,-695.7,0.00013835,2]
[351796920,1738791050068,-500.0,0.00013835,2]
[351796921,1738791050077,-288.21855819,0.00013835,2]
[351796922,1738791050086,-500.0,0.00013835,2]
[351796923,1738791050096,-851.27,0.00013835,2]
[351796924,1738791050106,-500.0,0.00013835,2]
[351796925,1738791050115,-807.14,0.00013835,2]
[351796926,1738791050125,-500.0,0.00013835,2]
[351796927,1738791050134,-805.22,0.00013835,2]
[351796928,1738791050144,-500.0,0.00013835,2]
[351796929,1738791050153,-612.81846506,0.00013835,2]
[351796930,1738791050163,-500.0,0.00013835,2]
[351796931,1738791050173,-500.0,0.00013835,2]
[351796932,1738791050183,-341.55286585,0.00013835,2]
[351796933,1738791050193,-500.0,0.00013835,2]
[351796934,1738791050203,-640.08,0.00013835,2]
[351796935,1738791050212,-500.0,0.00013835,2]
[351796936,1738791050222,-500.0,0.00013835,2]
[351796937,1738791050231,-556.35,0.00013835,2]
[351796938,1738791050245,-500.0,0.00013835,2]
[351796939,1738791050255,-500.0,0.00013835,2]
[351796940,1738791050264,-1015.77,0.00013835,2]
[351796941,1738791050274,-500.0,0.00013835,2]
[351796942,1738791050288,-500.0,0.00013835,2]
[351796943,1738791050298,-500.0,0.00013835,2]
[351796944,1738791050308,-500.0,0.00013835,2]
[351796945,1738791050317,-500.0,0.00013835,2]
[351796946,1738791050327,-500.0,0.00013835,2]
[351796947,1738791050336,-500.0,0.00013835,2]
[351796948,1738791050346,-552.4757375,0.00013835,2]
[351796949,1738791050356,-500.0,0.00013835,2]
[351796950,1738791050366,-500.0,0.00013835,2]
[351796951,1738791050376,-500.0,0.00013835,2]
[351796952,1738791050386,-500.0,0.00013835,2]
[351796953,1738791050395,-500.0,0.00013835,2]
[351796954,1738791050404,-500.0,0.00013835,2]
[351796955,1738791050416,-1254.59,0.00013835,2]
[351796956,1738791050426,-2506.79,0.00013835,2]
[351796957,1738791050435,-640.69,0.00013835,2]
[351796958,1738791050445,-151.0,0.00013835,2]
[351796959,1738791050454,-500.0,0.00013835,2]
[351796960,1738791050464,-536.27,0.00013835,2]
[351796961,1738791050473,-500.0,0.00013835,2]
[351796962,1738791050483,-500.0,0.00013835,2]
[351796963,1738791050494,-531.24,0.00013835,2]
[351796964,1738791050504,-779.61,0.00013835,2]
[351796965,1738791050513,-1713.41,0.00013835,2]
[351796966,1738791050522,-746.87,0.00013835,2]
[351796967,1738791050531,-500.0,0.00013835,2]
[351796968,1738791050542,-522.31791912,0.00013835,2]
[351796969,1738791050551,-500.0,0.00013835,2]
[351796970,1738791050561,-500.0,0.00013835,2]
[351796971,1738791050570,-500.0,0.00013835,2]
[351796972,1738791050580,-500.0,0.00013835,2]
[351796973,1738791050590,-500.0,0.00013835,2]
[351796974,1738791050599,-500.0,0.00013835,2]
[351796975,1738791050608,-500.0,0.00013835,2]
[351796976,1738791050618,-803.11,0.00013835,2]
[351796977,1738791050627,-500.0,0.00013835,2]
[351796978,1738791050637,-500.0,0.00013835,2]
[351796979,1738791050647,-500.0,0.00013835,2]
[351796980,1738791050658,-201.9818426,0.00013835,2]
[351796981,1738791050667,-1530.29,0.00013835,2]
[351796982,1738791050676,-500.0,0.00013835,2]
[351796983,1738791050687,-887.02,0.00013835,2]
[351796984,1738791050696,-2277.66,0.00013835,2]
[351796985,1738791050705,-500.0,0.00013835,2]
[351796986,1738791050715,-500.0,0.00013835,2]
[351796987,1738791050723,-513.94,0.00013835,2]
[351796988,1738791050734,-501.44963769,0.00013835,2]
[351796989,1738791050745,-1283.92,0.00013835,2]
[351796990,1738791050754,-500.0,0.00013835,2]
[351796991,1738791050764,-500.0,0.00013835,2]
[351796992,1738791050774,-540.18,0.00013835,2]
[351796993,1738791050784,-500.0,0.00013835,2]
[351796994,1738791050794,-500.0,0.00013835,2]
[351796995,1738791050804,-500.0,0.00013835,2]
[351796996,1738791050813,-712.18,0.00013835,2]
[351796997,1738791050823,-500.0,0.00013835,2]
[351796998,1738791050833,-683.41,0.00013835,2]
[351796999,1738791050843,-500.0,0.00013835,2]
[351797000,1738791050853,-517.57578407,0.00013835,2]
[351797001,1738791050863,-1063.56,0.00013835,2]
[351797002,1738791050873,-2411.97,0.00013835,2]
[351797003,1738791050884,-500.0,0.00013835,2]
[351797004,1738791050896,-352.54752496,0.00013835,2]
[351797005,1738791050907,-500.0,0.00013835,2]
[351797006,1738791050917,-503.28480552,0.00013835,2]
[351797007,1738791050927,-899.87,0.00013835,2]
[351797008,1738791050937,-500.0,0.00013835,2]
[351797009,1738791050947,-500.0,0.00013835,2]
[351797010,1738791050956,-500.0,0.00013835,2]
[351797011,1738791050967,-500.0,0.00013835,2]
[351797012,1738791050976,-151.0,0.00013835,2]
[351797013,1738791050986,-151.0,0.00013835,2]
[351797014,1738791050997,-1474.38,0.00013835,2]
[351797015,1738791051007,-608.82,0.00013835,2]
[351797016,1738791051016,-500.0,0.00013835,2]
[351797017,1738791051026,-500.0,0.00013835,2]
[351797018,1738791051035,-1219.23,0.00013835,2]
[351797019,1738791051045,-584.99,0.00013835,2]
[351797020,1738791051055,-500.0,0.00013835,2]
[351797021,1738791051064,-1760.08,0.00013835,2]
[351797022,1738791051074,-500.0,0.00013835,2]
[351797023,1738791051083,-500.0,0.00013835,2]
[351797024,1738791051093,-709.85,0.00013835,2]
[351797025,1738791051102,-151.0,0.00013835,2]
[351797026,1738791051111,-500.0,0.00013835,2]
[351797027,1738791051121,-500.0,0.00013835,2]
[351797028,1738791051130,-719.65,0.00013835,2]
[351797029,1738791051139,-1443.0,0.00013835,2]
[351797030,1738791051148,-863.74,0.00013835,2]
[351797031,1738791051158,-530.49,0.00013835,2]
[351797032,1738791051167,-500.0,0.00013835,2]
[351797033,1738791051176,-500.0,0.00013835,2]
[351797034,1738791051185,-502.3482059,0.00013835,2]
[351797035,1738791051195,-500.0,0.00013835,2]
[351797036,1738791051204,-3741.14,0.00013835,2]
[351797037,1738791051213,-500.0,0.00013835,2]
[351797038,1738791051222,-1573.04,0.00013835,2]
[351797039,1738791051231,-725.45,0.00013835,2]
[351797040,1738791051242,-500.0,0.00013835,2]
[351797041,1738791051258,-500.0,0.00013835,2]
[351797042,1738791051267,-514.85,0.00013835,2]
[351797043,1738791051277,-1488.32,0.00013835,2]
[351797044,1738791051287,-500.0,0.00013835,2]
[351797045,1738791051296,-500.0,0.00013835,2]
[351797046,1738791051305,-3850.61,0.00013835,2]
[351797047,1738791051314,-500.0,0.00013835,2]
[351797048,1738791051323,-500.0,0.00013835,2]
[351797049,1738791051333,-500.0,0.00013835,2]
[351797050,1738791051342,-500.0,0.00013835,2]
[351797051,1738791051351,-500.0,0.00013835,2]
[351797052,1738791051361,-515.94238992,0.00013835,2]
[351797053,1738791051370,-1297.11,0.00013835,2]
[351797054,1738791051380,-500.0,0.00013835,2]
[351797055,1738791051389,-500.0,0.00013835,2]
[351797056,1738791051398,-500.0,0.00013835,2]
[351797057,1738791051408,-508.1595289,0.00013835,2]
[351797058,1738791051417,-151.0,0.00013835,2]
[351797059,1738791051426,-632.4,0.00013835,2]
[351797060,1738791051435,-500.0,0.00013835,2]
[351797061,1738791051447,-500.0,0.00013835,2]
[351797062,1738791051457,-500.0,0.00013835,2]
[351797063,1738791051466,-501.15220094,0.00013835,2]
[351797064,1738791051475,-500.0,0.00013835,2]
[351797065,1738791051485,-297.93648358,0.00013835,2]
[351797066,1738791051495,-587.01,0.00013835,2]
[351797067,1738791051505,-500.0,0.00013835,2]
[351797068,1738791051515,-500.0,0.00013835,2]
[351797069,1738791051525,-546.55,0.00013835,2]
[351797070,1738791051534,-462.59792942,0.00013835,2]
[351797071,1738791051543,-766.2,0.00013835,2]
[351797072,1738791051552,-1041.24,0.00013835,2]
[351797073,1738791051562,-500.0,0.00013835,2]
[351797074,1738791051571,-1018.91,0.00013835,2]
[351797075,1738791051580,-500.0,0.00013835,2]
[351797076,1738791051589,-209.709451,0.00013835,2]
[351797077,1738791051598,-2339.06,0.00013835,2]
[351797078,1738791051607,-500.0,0.00013835,2]
[351797079,1738791051616,-1875.75,0.00013835,2]
[351797080,1738791051626,-502.53341103,0.00013835,2]
[351797081,1738791051637,-500.0,0.00013835,2]
[351797082,1738791051649,-500.0,0.00013835,2]
[351797083,1738791051659,-754.58,0.00013835,2]
[351797084,1738791051669,-151.0,0.00013835,2]
[351797085,1738791051679,-151.0,0.00013835,2]
[351797086,1738791051692,-794.26,0.00013835,2]
[351797087,1738791051702,-833.97,0.00013835,2]
[351797088,1738791051712,-500.0,0.00013835,2]
[351797089,1738791051722,-500.0,0.00013835,2]
[351797090,1738791051732,-967.96,0.00013835,2]
[351797091,1738791051742,-500.0,0.00013835,2]
[351797092,1738791051752,-500.0,0.00013835,2]
[351797093,1738791051762,-500.0,0.00013835,2]
[351797094,1738791051878,-524.27,0.00013835,2]
[351797095,1738791051888,-1147.83,0.00013835,2]
[351797096,1738791051897,-500.0,0.00013835,2]
[351797097,1738791051907,-500.0,0.00013835,2]
[351797098,1738791051916,-500.0,0.00013835,2]
[351797099,1738791051926,-814.12,0.00013835,2]
[351797100,1738791051935,-500.0,0.00013835,2]
[351797101,1738791051945,-500.0,0.00013835,2]
[351797102,1738791051955,-500.0,0.00013835,2]
[351797103,1738791051965,-500.0,0.00013835,2]
[351797104,1738791051974,-500.0,0.00013835,2]
[351797105,1738791051983,-500.0,0.00013835,2]
[351797106,1738791051994,-500.0,0.00013835,2]
[351797107,1738791052004,-500.0,0.00013835,2]
[351797108,1738791052013,-669.39,0.00013835,2]
[351797109,1738791052023,-500.0,0.00013835,2]
[351797110,1738791052032,-500.0,0.00013835,2]
[351797111,1738791052042,-500.0,0.00013835,2]
[351797112,1738791052052,-151.0,0.00013835,2]
[351797113,1738791052061,-151.0,0.00013835,2]
[351797114,1738791052072,-502.51161419,0.00013835,2]
[351797115,1738791052081,-500.0,0.00013835,2]
[351797116,1738791052091,-500.0,0.00013835,2]
[351797117,1738791052101,-4294.09,0.00013835,2]
[351797118,1738791052111,-500.0,0.00013835,2]
[351797119,1738791052120,-500.0,0.00013835,2]
[351797120,1738791052130,-523.48,0.00013835,2]
[351797121,1738791052139,-500.0,0.00013835,2]
[351797122,1738791052149,-151.0,0.00013835,2]
[351797123,1738791052158,-151.0,0.00013835,2]
[351797124,1738791052168,-500.0,0.00013835,2]
[351797125,1738791052178,-682.39,0.00013835,2]
[351797126,1738791052186,-500.0,0.00013835,2]
[351797127,1738791052196,-500.0,0.00013835,2]
[351797128,1738791052205,-151.0,0.00013835,2]
[351797129,1738791052215,-151.0,0.00013835,2]
[351797130,1738791052225,-500.0,0.00013835,2]
[351797131,1738791052234,-500.0,0.00013835,2]
[351797132,1738791052246,-1052.83,0.00013835,2]
[351797133,1738791052255,-500.0,0.00013835,2]
[351797134,1738791052264,-500.0,0.00013835,2]
[351797135,1738791052274,-500.0,0.00013835,2]
[351797136,1738791052283,-151.0,0.00013835,2]
[351797137,1738791052292,-151.0,0.00013835,2]
[351797138,1738791052302,-500.0,0.00013835,2]
[351797139,1738791052312,-229.61562842,0.00013835,2]
[351797140,1738791052322,-573.02,0.00013835,2]
[351797141,1738791052331,-500.0,0.00013835,2]
[351797142,1738791052341,-500.0,0.00013835,2]
[351797143,1738791052350,-500.0,0.00013835,2]
[351797144,1738791052360,-500.0,0.00013835,2]
[351797145,1738791052369,-500.0,0.00013835,2]
[351797146,1738791052378,-1559.82,0.00013835,2]
[351797147,1738791052388,-500.0,0.00013835,2]
[351797148,1738791052397,-500.0,0.00013835,2]
[351797149,1738791052406,-500.0,0.00013835,2]
[351797150,1738791052415,-500.0,0.00013835,2]
[351797151,1738791052425,-500.0,0.00013835,2]
[351797152,1738791052435,-500.0,0.00013835,2]
[351797153,1738791052446,-1170.03,0.00013835,2]
[351797154,1738791052455,-500.0,0.00013835,2]
[351797155,1738791052464,-500.0,0.00013835,2]
[351797156,1738791052475,-500.0,0.00013835,2]
[351797157,1738791052484,-736.28,0.00013835,2]
[351797158,1738791052495,-500.26325349,0.00013835,2]
[351797159,1738791052504,-643.74,0.00013835,2]
[351797160,1738791052514,-652.34,0.00013835,2]
[351797161,1738791052523,-961.16,0.00013835,2]
[351797162,1738791052533,-2919.62,0.00013835,2]
[351797163,1738791052542,-500.0,0.00013835,2]
[351797164,1738791052552,-2982.9,0.00013835,2]
[351797165,1738791052563,-500.0,0.00013835,2]
[351797166,1738791052572,-1459.2,0.00013835,2]
[351797167,1738791052582,-1252.1,0.00013835,2]
[351797168,1738791052592,-500.0,0.00013835,2]
[351797169,1738791052601,-500.0,0.00013835,2]
[351797170,1738791052611,-311.54707333,0.00013835,2]
[351797171,1738791052620,-151.0,0.00013835,2]
[351797172,1738791052630,-272.753926,0.00013835,2]
[351797173,1738791052640,-500.0,0.00013835,2]
[351797174,1738791052655,-500.0,0.00013835,2]
[351797175,1738791052664,-500.0,0.00013835,2]
[351797176,1738791052675,-528.02,0.00013835,2]
[351797177,1738791052684,-500.0,0.00013835,2]
[351797178,1738791052694,-581.83,0.00013835,2]
[351797179,1738791052703,-500.0,0.00013835,2]
[351797180,1738791052713,-1508.32,0.00013835,2]
[351797181,1738791052723,-624.42513372,0.00013835,2]
[351797182,1738791052733,-500.0,0.00013835,2]
[351797183,1738791052748,-500.0,0.00013835,2]
[351797184,1738791052758,-500.0,0.00013835,2]
[351797185,1738791052767,-668.78,0.00013835,2]
[351797186,1738791052777,-781.77,0.00013835,2]
[351797187,1738791052787,-500.0,0.00013835,2]
[351797188,1738791052797,-500.0,0.00013835,2]
[351797189,1738791052806,-501.98540406,0.00013835,2]
[351797190,1738791052816,-615.74,0.00013835,2]
[351797191,1738791052826,-589.48,0.00013835,2]
[351797192,1738791052835,-500.0,0.00013835,2]
[351797193,1738791052845,-1225.16,0.00013835,2]
[351797194,1738791052855,-500.0,0.00013835,2]
[351797195,1738791052864,-500.0,0.00013835,2]
[351797196,1738791052874,-500.0,0.00013835,2]
[351797197,1738791052884,-509.66229662,0.00013835,2]
[351797198,1738791052893,-1034.21,0.00013835,2]
[351797199,1738791052903,-500.0,0.00013835,2]
[351797200,1738791052912,-1087.53,0.00013835,2]
[351797201,1738791052922,-500.0,0.00013835,2]
[351797202,1738791052932,-3719.08,0.00013835,2]
[351797203,1738791052942,-500.0,0.00013835,2]
[351797204,1738791052952,-766.14,0.00013835,2]
[351797205,1738791052961,-651.64,0.00013835,2]